[Event "98th Caplin Hastings Masters 2024-25"]
[Site "Hastings"]
[Date "2024.12.28"]
[Round "1.24"]
[White "Nielsen, Andre"]
[Black "Lishoy Gengis Paratazham, Dildarav"]
[Result "1/2-1/2"]
[ECO "C41"]
[WhiteElo "2276"]
[BlackElo "2037"]
[Annotator "RC"]
[PlyCount "55"]
[EventDate "2024.12.23"]
[EventType "swiss"]
[EventCountry "ENG"]
[SourceTitle "playchess.com"]
[Source "ChessBase"]
[SourceQuality "1"]
[TimeControl "5400+30"]

1. e4 {[%emt 0:00:05]} d6 {[%emt 0:00:18]} 2. d4 {[%emt 0:00:26]} Nf6 {[%emt 0:00:16]} 3. Nc3 {[%emt 0:00:21]} e5 {[%emt 0:00:08]} 4. Nf3 {[%emt 0:02:18]} Nbd7 {[%emt 0:00:11]} 5. g4 {[%emt 0:01:46]} h6 {[%emt 0:01:12]} 6. Rg1 {[%emt 0:00:14]} c6 {[%emt 0:00:29]} 7. Be3 {[%emt 0:02:34]} Be7 {[%emt 0:01:51]} 8. Be2 {[%emt 0:04:00]} Qa5 {[%emt 0:11:55]} 9. Qd2 {[%emt 0:16:14]} b5 {[%emt 0:08:31]} 10. a3 {[%emt 0:14:36]} b4 {[%emt 0:17:22]} 11. Na2 {[%emt 0:04:20]} Nxe4 {[%emt 0:00:57]} 12. axb4 {[%emt 0:07:32]} Qc7 {[%emt 0:18:02]} 13. Qd3 {[%emt 0:05:07]} Nef6 {[%emt 0:00:23]} 14. dxe5 {[%emt 0:09:29]} dxe5 {[%emt 0:02:34]} 15. Qb3 {[%emt 0:03:24]} Nb6 {[%emt 0:03:08]} 16. g5 {[%emt 0:05:56]} Be6 {[%emt 0:01:06]} 17. c4 {[%emt 0:03:45]} Ng4 {[%emt 0:09:24]} 18. gxh6 {[%emt 0:00:37]} gxh6 {[%emt 0:02:36]} 19. O-O-O {[%emt 0:01:20]} Nxe3 {[%emt 0:00:44]} 20. fxe3 {[%emt 0:00:45]} a5 {[%emt 0:02:21]} 21. bxa5 {[%emt 0:01:18]} Rxa5 {[%emt 0:01:00]} 22. Nc3 {[%emt 0:00:42]} Ra1+ {[%emt 0:03:11]} 23. Kc2 {[%emt 0:00:40]} Ra8 {[%emt 0:01:16]} 24. Nd2 {[%emt 0:04:12]} Rb8 {[%emt 0:01:09]} 25. Qa2 {[%emt 0:00:24]} Ra8 {[%emt 0:00:30]} 26. Qb3 {[%emt 0:03:40]} Rb8 {[%emt 0:00:07]} 27. Qa2 {[%emt 0:00:34]} Ra8 {[%emt 0:00:04]} 28. Qb1 {[%emt 0:02:23]} 1/2-1/2

[Event "98th Caplin Hastings Masters 2024-25"]
[Site "Hastings"]
[Date "2024.12.28"]
[Round "1.25"]
[White "Verbytski, Oleg"]
[Black "Bozinakis, Pavlos"]
[Result "0-1"]
[ECO "B92"]
[WhiteElo "2033"]
[BlackElo "2271"]
[Annotator "RC"]
[PlyCount "88"]
[EventDate "2024.12.23"]
[EventType "swiss"]
[EventCountry "ENG"]
[SourceTitle "playchess.com"]
[Source "ChessBase"]
[SourceQuality "1"]
[TimeControl "5400+30"]

1. e4 {[%emt 0:00:01]} c5 {[%emt 0:00:16]} 2. Nf3 {[%emt 0:00:08]} d6 {[%emt 0:00:11]} 3. d4 {[%emt 0:00:07]} cxd4 {[%emt 0:00:07]} 4. Nxd4 {[%emt 0:00:09]} Nf6 {[%emt 0:00:07]} 5. Nc3 {[%emt 0:00:12]} a6 {[%emt 0:00:14]} 6. Be2 {[%emt 0:01:35]} e5 {[%emt 0:00:36]} 7. Nb3 {[%emt 0:00:09]} Be7 {[%emt 0:00:44]} 8. Be3 {[%emt 0:00:33]} Be6 {[%emt 0:00:46]} 9. Bf3 {[%emt 0:04:28]} Nbd7 {[%emt 0:05:05]} 10. O-O {[%emt 0:00:43]} O-O {[%emt 0:02:24]} 11. Re1 {[%emt 0:02:22]} Rc8 {[%emt 0:02:40]} 12. a4 {[%emt 0:00:27]} Nb6 {[%emt 0:01:23]} 13. Nd2 {[%emt 0:09:07]} Qc7 {[%emt 0:11:31]} 14. a5 {[%emt 0:00:27]} Nbd7 {[%emt 0:01:53]} 15. Nf1 {[%emt 0:01:33]} Rfe8 {[%emt 0:03:47]} 16. h3 {[%emt 0:00:55]} Bf8 {[%emt 0:02:24]} 17. Nh2 {[%emt 0:05:38]} h6 {[%emt 0:03:09]} 18. Ng4 {[%emt 0:02:40]} Nh7 {[%emt 0:01:02]} 19. h4 {[%emt 0:08:29]} Bc4 {[%emt 0:06:16]} 20. g3 {[%emt 0:06:10]} b5 {[%emt 0:04:09]} 21. Qd2 {[%emt 0:03:10]} Be6 {[%emt 0:05:01]} 22. Nh2 {[%emt 0:01:28]} Be7 {[%emt 0:04:02]} 23. Rec1 {[%emt 0:03:53]} Nhf6 {[%emt 0:03:11]} 24. Nd5 {[%emt 0:03:15]} Bxd5 {[%emt 0:04:04]} 25. exd5 {[%emt 0:00:06]} e4 {[%emt 0:00:23]} 26. Be2 {[%emt 0:00:56]} Ne5 {[%emt 0:00:27]} 27. b3 {[%emt 0:01:35]} Qc3 {[%emt 0:12:45]} 28. Qd1 {[%emt 0:02:59]} Nfd7 {[%emt 0:02:43]} 29. Bd4 {[%emt 0:02:48]} Qc7 {[%emt 0:00:07]} 30. c4 {[%emt 0:01:16]} bxc4 {[%emt 0:00:29]} 31. bxc4 {[%emt 0:00:08]} Bf6 {[%emt 0:01:44]} 32. Ng4 {[%emt 0:04:40]} Nxg4 {[%emt 0:02:33]} 33. Bxg4 {[%emt 0:00:07]} Bxd4 {[%emt 0:00:23]} 34. Qxd4 {[%emt 0:01:53]} Rb8 {[%emt 0:01:30]} 35. Bxd7 {[%emt 0:01:17]} Qxd7 {[%emt 0:00:06]} 36. Rcb1 {[%emt 0:09:00]} Qf5 {[%emt 0:05:21]} 37. Rb6 {[%emt 0:00:55]} Rbc8 {[%emt 0:04:13]} 38. Re1 {[%emt 0:01:07]} e3 {[%emt 0:02:40]} 39. Rxe3 {[%emt 0:00:36]} Rxe3 {[%emt 0:00:06]} 40. Qxe3 {[%emt 0:00:57]} Rxc4 {[%emt 0:00:07]} 41. Rxd6 {[%emt 0:00:55]} Re4 {[%emt 0:00:22]} 42. Qd2 {[%emt 0:03:13]} Qf3 {[%emt 0:02:21]} 43. Rd8+ {[%emt 0:06:53]} Kh7 {[%emt 0:00:06]} 44. Qb2 {[%emt 0:05:40]} Re1+ {[%emt 0:00:25]} 0-1

[Event "98th Caplin Hastings Masters 2024-25"]
[Site "Hastings"]
[Date "2024.12.28"]
[Round "1.26"]
[White "Badacsonyi, Stanley"]
[Black "Marusenko, Petr"]
[Result "1-0"]
[ECO "E73"]
[WhiteElo "2266"]
[BlackElo "2021"]
[Annotator "RC"]
[PlyCount "95"]
[EventDate "2024.12.23"]
[EventType "swiss"]
[EventCountry "ENG"]
[SourceTitle "playchess.com"]
[Source "ChessBase"]
[SourceQuality "1"]
[TimeControl "5400+30"]

1. d4 {[%emt 0:00:03]} Nf6 {[%emt 0:00:06]} 2. c4 {[%emt 0:00:05]} g6 {[%emt 0:00:05]} 3. Nc3 {[%emt 0:00:08]} Bg7 {[%emt 0:00:04]} 4. e4 {[%emt 0:00:08]} O-O {[%emt 0:00:06]} 5. Be3 {[%emt 0:00:09]} d6 {[%emt 0:00:05]} 6. Be2 {[%emt 0:00:04]} Nbd7 {[%emt 0:00:27]} 7. g4 {[%emt 0:01:55]} e5 {[%emt 0:00:09]} 8. d5 {[%emt 0:00:04]} a5 {[%emt 0:00:25]} 9. h4 {[%emt 0:00:11]} Nc5 {[%emt 0:00:08]} 10. f3 {[%emt 0:00:17]} h5 {[%emt 0:00:10]} 11. g5 {[%emt 0:00:08]} Nfd7 {[%emt 0:01:41]} 12. Nh3 {[%emt 0:00:38]} Qe7 {[%emt 0:02:25]} 13. Qd2 {[%emt 0:02:23]} Nb6 {[%emt 0:00:44]} 14. O-O-O {[%emt 0:11:49]} Bd7 {[%emt 0:03:07]} 15. Kb1 {[%emt 0:02:14]} Nba4 {[%emt 0:00:30]} 16. Nb5 {[%emt 0:03:43]} Bxb5 {[%emt 0:06:26]} 17. cxb5 {[%emt 0:00:23]} Nb6 {[%emt 0:00:04]} 18. Bxc5 {[%emt 0:07:03]} dxc5 {[%emt 0:00:04]} 19. d6 {[%emt 0:00:06]} Qd8 {[%emt 0:07:26]} 20. dxc7 {[%emt 0:02:22]} Qxc7 {[%emt 0:00:03]} 21. Qd6 {[%emt 0:00:11]} Rac8 {[%emt 0:00:23]} 22. Rd2 {[%emt 0:06:30]} Rfe8 {[%emt 0:04:11]} 23. Qxc7 {[%emt 0:05:18]} Rxc7 {[%emt 0:00:26]} 24. Rd6 {[%emt 0:00:44]} Nc8 {[%emt 0:00:58]} 25. b6 {[%emt 0:08:20]} Nxd6 {[%emt 0:06:59]} 26. bxc7 {[%emt 0:00:09]} Rc8 {[%emt 0:00:08]} 27. Rd1 {[%emt 0:00:08]} Bf8 {[%emt 0:00:03]} 28. Rd5 {[%emt 0:00:08]} Rxc7 {[%emt 0:00:02]} 29. Rxe5 {[%emt 0:00:07]} b5 {[%emt 0:02:58]} 30. Rd5 {[%emt 0:02:39]} Nc4 {[%emt 0:12:05]} 31. Bxc4 {[%emt 0:00:41]} bxc4 {[%emt 0:00:02]} 32. Kc2 {[%emt 0:00:23]} Rb7 {[%emt 0:00:15]} 33. Nf2 {[%emt 0:00:25]} Bg7 {[%emt 0:00:18]} 34. e5 {[%emt 0:00:07]} a4 {[%emt 0:01:27]} 35. Ne4 {[%emt 0:01:20]} a3 {[%emt 0:00:13]} 36. bxa3 {[%emt 0:00:09]} Ra7 {[%emt 0:00:11]} 37. Rxc5 {[%emt 0:00:05]} Rxa3 {[%emt 0:00:07]} 38. Nc3 {[%emt 0:00:04]} Kf8 {[%emt 0:02:42]} 39. f4 {[%emt 0:01:18]} Ke7 {[%emt 0:00:17]} 40. Rxc4 {[%emt 0:00:21]} Ke6 {[%emt 0:00:50]} 41. Rc8 {[%emt 0:00:06]} Ke7 {[%emt 0:03:47]} 42. Kb2 {[%emt 0:00:14]} Ra7 {[%emt 0:00:03]} 43. a4 {[%emt 0:00:09]} Rd7 {[%emt 0:02:08]} 44. Kb3 {[%emt 0:00:37]} Bf8 {[%emt 0:02:20]} 45. a5 {[%emt 0:00:28]} Rd8 {[%emt 0:00:32]} 46. Rxd8 {[%emt 0:00:08]} Kxd8 {[%emt 0:00:32]} 47. Ne4 {[%emt 0:01:09]} Kd7 {[%emt 0:07:36]} 48. Nd6 {[%emt 0:00:16]} 1-0

[Event "98th Caplin Hastings Masters 2024-25"]
[Site "Hastings"]
[Date "2024.12.28"]
[Round "1.27"]
[White "Kolka, David"]
[Black "Keely, Leo A"]
[Result "1-0"]
[ECO "A45"]
[WhiteElo "2020"]
[BlackElo "1899"]
[Annotator "NA RC"]
[PlyCount "79"]
[EventDate "2024.12.23"]
[EventType "swiss"]
[EventCountry "ENG"]
[SourceTitle "playchess.com"]
[Source "ChessBase"]
[SourceQuality "1"]
[TimeControl "5400+30"]

1. d4 {[%emt 0:00:02]} Nf6 {[%emt 0:00:47]} 2. Bg5 {[%emt 0:00:10]} d5 {[%emt 0:01:43]} 3. e3 {[%emt 0:00:07]} Ne4 {[%emt 0:01:56]} 4. Bf4 {[%emt 0:00:09]} c5 {[%emt 0:00:47]} 5. Nd2 {[%emt 0:02:40]} Qa5 {[%emt 0:05:00]} 6. c3 {[%emt 0:02:07]} Nxd2 {[%emt 0:01:20]} 7. Qxd2 {[%emt 0:00:08]} cxd4 {[%emt 0:03:16]} 8. exd4 {[%emt 0:00:53]} Nc6 {[%emt 0:01:46]} 9. Bd3 {[%emt 0:02:35]} Bg4 {[%emt 0:05:48]} 10. Ne2 {[%emt 0:04:44]} Bh5 {[%emt 0:03:44]} 11. Ng3 {[%emt 0:09:02]} Bg6 {[%emt 0:00:14]} 12. Nf5 {[%emt 0:03:08]} O-O-O {[%emt 0:08:29]} 13. b4 {[%emt 0:10:09]} Qa3 {[%emt 0:05:39]} 14. Qc2 {[%emt 0:22:31]} b5 {[%emt 0:06:17]} 15. Bxb5 {[%emt 0:05:40]} e6 {[%emt 0:00:48]} 16. Bxc6 {[%emt 0:04:17]} Bxf5 {[%emt 0:01:58]} 17. Qb3 {[%emt 0:01:02]} Qa6 {[%emt 0:01:18]} 18. b5 {[%emt 0:00:55]} Qb6 {[%emt 0:03:58]} 19. Rd1 {[%emt 0:02:30]} Bd6 {[%emt 0:01:41]} 20. Be3 {[%emt 0:03:37]} Qa5 {[%emt 0:03:27]} 21. O-O {[%emt 0:01:00]} Qa3 {[%emt 0:01:41]} 22. Rd2 {[%emt 0:01:08]} Kc7 {[%emt 0:06:35]} 23. c4 {[%emt 0:01:25]} Bb4 {[%emt 0:02:28]} 24. Rb2 {[%emt 0:01:26]} Qxb3 {[%emt 0:03:39]} 25. Rxb3 {[%emt 0:00:24]} Be7 {[%emt 0:01:02]} 26. Bf4+ {[%emt 0:01:59]} Bd6 {[%emt 0:03:05]} 27. Bxd6+ {[%emt 0:00:10]} Kxd6 {[%emt 0:01:05]} 28. c5+ {[%emt 0:00:13]} Kc7 {[%emt 0:00:06]} 29. Ra3 {[%emt 0:00:06]} Rb8 {[%emt 0:01:33]} 30. Rxa7+ {[%emt 0:00:11]} Kd8 {[%emt 0:00:06]} 31. Rxf7 {[%emt 0:01:32]} h5 {[%emt 0:02:45]} 32. Rxg7 {[%emt 0:00:47]} h4 {[%emt 0:00:08]} 33. h3 {[%emt 0:00:18]} Rh7 {[%emt 0:02:43]} 34. Rxh7 {[%emt 0:01:53]} Bxh7 {[%emt 0:00:07]} 35. a4 {[%emt 0:00:10]} Kc7 {[%emt 0:00:23]} 36. Re1 {[%emt 0:00:25]} Rg8 {[%emt 0:00:47]} 37. Rxe6 {[%emt 0:01:20]} Be4 {[%emt 0:01:57]} 38. b6+ {[%emt 0:01:03]} Kd8 {[%emt 0:00:12]} 39. Re8+ {[%emt 0:01:28]} Rxe8 {[%emt 0:00:09]} 40. Bxe8 {[%emt 0:00:02]} 1-0

[Event "98th Caplin Hastings Masters 2024-25"]
[Site "Hastings"]
[Date "2024.12.28"]
[Round "1.28"]
[White "Rastogi, Nayan Keats"]
[Black "Rida, Ruqayyah"]
[Result "1/2-1/2"]
[ECO "C78"]
[WhiteElo "1892"]
[BlackElo "2019"]
[Annotator "RC"]
[PlyCount "63"]
[EventDate "2024.12.23"]
[EventType "swiss"]
[EventCountry "ENG"]
[SourceTitle "playchess.com"]
[Source "ChessBase"]
[SourceQuality "1"]
[TimeControl "5400+30"]

1. e4 {[%emt 0:00:02]} e5 {[%emt 0:00:05]} 2. Nf3 {[%emt 0:00:04]} Nc6 {[%emt 0:00:14]} 3. Bb5 {[%emt 0:00:05]} a6 {[%emt 0:00:08]} 4. Ba4 {[%emt 0:00:04]} Nf6 {[%emt 0:00:08]} 5. O-O {[%emt 0:00:05]} b5 {[%emt 0:00:05]} 6. Bb3 {[%emt 0:00:06]} Bc5 {[%emt 0:00:11]} 7. c3 {[%emt 0:00:04]} d6 {[%emt 0:00:16]} 8. d4 {[%emt 0:00:04]} Bb6 {[%emt 0:00:04]} 9. a4 {[%emt 0:00:34]} Rb8 {[%emt 0:00:15]} 10. axb5 {[%emt 0:00:10]} axb5 {[%emt 0:00:12]} 11. Na3 {[%emt 0:00:22]} O-O {[%emt 0:06:23]} 12. Nxb5 {[%emt 0:00:16]} Bg4 {[%emt 0:00:59]} 13. Bc2 {[%emt 0:00:24]} Re8 {[%emt 0:01:34]} 14. Re1 {[%emt 0:07:39]} h6 {[%emt 0:06:35]} 15. dxe5 {[%emt 0:26:50]} Nxe5 {[%emt 0:09:13]} 16. Nbd4 {[%emt 0:02:36]} Nfd7 {[%emt 0:19:47]} 17. Ba4 {[%emt 0:15:15]} Qf6 {[%emt 0:06:45]} 18. Bxd7 {[%emt 0:06:51]} Bxd7 {[%emt 0:04:11]} 19. Nxe5 {[%emt 0:01:56]} dxe5 {[%emt 0:01:10]} 20. Nf3 {[%emt 0:01:57]} Red8 {[%emt 0:01:34]} 21. Qe2 {[%emt 0:07:04]} Bc6 {[%emt 0:11:55]} 22. Qc2 {[%emt 0:04:13]} Rd6 {[%emt 0:06:25]} 23. Be3 {[%emt 0:02:35]} Rbd8 {[%emt 0:01:24]} 24. Bxb6 {[%emt 0:01:30]} cxb6 {[%emt 0:00:12]} 25. Re3 {[%emt 0:09:52]} g5 {[%emt 0:01:54]} 26. Re2 {[%emt 0:04:00]} Qe7 {[%emt 0:06:58]} 27. Nd2 {[%emt 0:06:27]} Qe6 {[%emt 0:02:21]} 28. Nf1 {[%emt 0:01:08]} Bb5 {[%emt 0:02:52]} 29. Rd2 {[%emt 0:02:10]} Bd3 {[%emt 0:01:16]} 30. Qa4 {[%emt 0:00:11]} b5 {[%emt 0:06:56]} 31. Qb4 {[%emt 0:00:23]} Bxf1 {[%emt 0:00:48]} 32. Rxd6 {[%emt 0:00:17]} 1/2-1/2

[Event "98th Caplin Hastings Masters 2024-25"]
[Site "Hastings"]
[Date "2024.12.28"]
[Round "1.29"]
[White "Bhatia, Kanishka"]
[Black "Dewangan, Aayush"]
[Result "0-1"]
[ECO "B51"]
[WhiteElo "2018"]
[BlackElo "1878"]
[Annotator "RC"]
[PlyCount "95"]
[EventDate "2024.12.23"]
[EventType "swiss"]
[EventCountry "ENG"]
[SourceTitle "playchess.com"]
[Source "ChessBase"]
[SourceQuality "1"]
[TimeControl "5400+30"]

1. e4 {[%emt 0:00:04]} c5 {[%emt 0:00:10]} 2. Nf3 {[%emt 0:00:17]} d6 {[%emt 0:00:19]} 3. Bb5+ {[%emt 0:00:41]} Nd7 {[%emt 0:01:39]} 4. c4 {[%emt 0:00:37]} a6 {[%emt 0:03:00]} 5. Bxd7+ {[%emt 0:00:29]} Qxd7 {[%emt 0:00:10]} 6. d4 {[%emt 0:01:48]} cxd4 {[%emt 0:00:12]} 7. Nxd4 {[%emt 0:00:53]} e5 {[%emt 0:04:18]} 8. Nf3 {[%emt 0:02:02]} f5 {[%emt 0:04:04]} 9. Nc3 {[%emt 0:01:48]} Nf6 {[%emt 0:01:25]} 10. exf5 {[%emt 0:03:50]} Qxf5 {[%emt 0:02:37]} 11. O-O {[%emt 0:01:07]} Be7 {[%emt 0:02:15]} 12. Bg5 {[%emt 0:03:37]} Be6 {[%emt 0:07:18]} 13. Bxf6 {[%emt 0:10:42]} gxf6 {[%emt 0:02:46]} 14. Nd5 {[%emt 0:00:27]} Rc8 {[%emt 0:05:45]} 15. Qd2 {[%emt 0:03:39]} Rg8 {[%emt 0:07:57]} 16. Ne1 {[%emt 0:02:37]} Qe4 {[%emt 0:13:42]} 17. Rd1 {[%emt 0:08:18]} Rc6 {[%emt 0:14:46]} 18. b3 {[%emt 0:02:27]} f5 {[%emt 0:02:46]} 19. Qh6 {[%emt 0:08:01]} Kd7 {[%emt 0:00:43]} 20. f3 {[%emt 0:01:38]} Qh4 {[%emt 0:01:08]} 21. Qd2 {[%emt 0:05:16]} b6 {[%emt 0:07:22]} 22. Nd3 {[%emt 0:03:48]} Qd4+ {[%emt 0:01:44]} 23. Kh1 {[%emt 0:03:58]} Bxd5 {[%emt 0:04:29]} 24. cxd5 {[%emt 0:00:07]} Rc3 {[%emt 0:02:32]} 25. Qe2 {[%emt 0:01:42]} b5 {[%emt 0:03:16]} 26. f4 {[%emt 0:03:07]} Qe4 {[%emt 0:01:09]} 27. Qxe4 {[%emt 0:01:18]} fxe4 {[%emt 0:00:02]} 28. Nb4 {[%emt 0:00:56]} a5 {[%emt 0:01:11]} 29. Nc6 {[%emt 0:00:10]} e3 {[%emt 0:00:22]} 30. Rde1 {[%emt 0:01:28]} Rf8 {[%emt 0:02:21]} 31. g3 {[%emt 0:08:48]} exf4 {[%emt 0:00:42]} 32. gxf4 {[%emt 0:04:26]} Bh4 {[%emt 0:00:29]} 33. Re2 {[%emt 0:01:33]} Rd3 {[%emt 0:00:38]} 34. Rg1 {[%emt 0:05:57]} Rf7 {[%emt 0:00:42]} 35. Rg4 {[%emt 0:01:00]} Bf2 {[%emt 0:00:17]} 36. Kg2 {[%emt 0:01:27]} Rxd5 {[%emt 0:00:28]} 37. Nxa5 {[%emt 0:00:08]} Rd2 {[%emt 0:01:05]} 38. Kf3 {[%emt 0:00:31]} h5 {[%emt 0:00:07]} 39. Rg5 {[%emt 0:01:10]} Rxf4+ {[%emt 0:01:25]} 40. Kxf4 {[%emt 0:00:07]} Rxe2 {[%emt 0:00:04]} 41. Kf3 {[%emt 0:00:42]} Rxa2 {[%emt 0:01:01]} 42. Rxb5 {[%emt 0:00:35]} Bg1 {[%emt 0:00:55]} 43. Rg5 {[%emt 0:01:31]} Rf2+ {[%emt 0:00:59]} 44. Ke4 {[%emt 0:05:13]} e2 {[%emt 0:00:12]} 45. Rg7+ {[%emt 0:00:11]} Ke8 {[%emt 0:00:15]} 46. Rxg1 {[%emt 0:00:22]} Rf1 {[%emt 0:00:05]} 47. Kd3 {[%emt 0:00:10]} e1=Q {[%emt 0:00:32]} 48. Kd4 {[%emt 0:00:39]} 0-1

[Event "98th Caplin Hastings Masters 2024-25"]
[Site "Hastings"]
[Date "2024.12.28"]
[Round "1.30"]
[White "Pick, Freddie"]
[Black "White, Stuart A"]
[Result "1-0"]
[ECO "C07"]
[WhiteElo "1874"]
[BlackElo "2017"]
[Annotator "NA RC"]
[PlyCount "61"]
[EventDate "2024.12.23"]
[EventType "swiss"]
[EventCountry "ENG"]
[SourceTitle "playchess.com"]
[Source "ChessBase"]
[SourceQuality "1"]
[TimeControl "5400+30"]

1. e4 {[%emt 0:00:05]} e6 {[%emt 0:00:05]} 2. d4 {[%emt 0:00:03]} d5 {[%emt 0:00:04]} 3. Nd2 {[%emt 0:00:02]} c5 {[%emt 0:00:20]} 4. exd5 {[%emt 0:00:04]} Qxd5 {[%emt 0:00:13]} 5. Ngf3 {[%emt 0:00:03]} cxd4 {[%emt 0:00:33]} 6. Bc4 {[%emt 0:00:42]} Qd6 {[%emt 0:00:07]} 7. O-O {[%emt 0:00:05]} Nf6 {[%emt 0:00:02]} 8. Nb3 {[%emt 0:00:04]} Nc6 {[%emt 0:00:16]} 9. Nbxd4 {[%emt 0:00:04]} Nxd4 {[%emt 0:00:08]} 10. Nxd4 {[%emt 0:00:03]} a6 {[%emt 0:00:16]} 11. Re1 {[%emt 0:00:02]} Qc7 {[%emt 0:00:28]} 12. Bb3 {[%emt 0:00:03]} Bd6 {[%emt 0:05:45]} 13. Nf5 {[%emt 0:00:05]} Bxh2+ {[%emt 0:02:11]} 14. Kh1 {[%emt 0:00:09]} O-O {[%emt 0:06:08]} 15. Nxg7 {[%emt 0:00:56]} Rd8 {[%emt 0:20:03]} 16. Qf3 {[%emt 0:00:44]} Kxg7 {[%emt 0:00:04]} 17. Bh6+ {[%emt 0:00:06]} Kg6 {[%emt 0:00:12]} 18. c3 {[%emt 0:00:12]} Nh5 {[%emt 0:33:52]} 19. Re4 {[%emt 0:30:07]} Kxh6 {[%emt 0:06:24]} 20. Rh4 {[%emt 0:00:21]} Qe5 {[%emt 0:06:27]} 21. g4 {[%emt 0:30:57]} Qf4 {[%emt 0:08:03]} 22. Rxh5+ {[%emt 0:03:27]} Kg7 {[%emt 0:00:04]} 23. Qh3 {[%emt 0:00:45]} Bd7 {[%emt 0:03:54]} 24. Rxh7+ {[%emt 0:02:37]} Kf8 {[%emt 0:00:03]} 25. Rh8+ {[%emt 0:03:25]} Ke7 {[%emt 0:00:05]} 26. Qh4+ {[%emt 0:00:27]} f6 {[%emt 0:03:18]} 27. Rh7+ {[%emt 0:00:36]} Kd6 {[%emt 0:00:19]} 28. Rd1+ {[%emt 0:01:19]} Kc7 {[%emt 0:03:03]} 29. Qxh2 {[%emt 0:00:18]} Qxh2+ {[%emt 0:00:11]} 30. Kxh2 {[%emt 0:00:05]} b5 {[%emt 0:00:44]} 31. Bxe6 {[%emt 0:00:23]} 1-0

[Event "98th Caplin Hastings Masters 2024-25"]
[Site "Hastings"]
[Date "2024.12.28"]
[Round "1.31"]
[White "Rayner, Francis"]
[Black "Ruane, Brendan J"]
[Result "1/2-1/2"]
[ECO "A04"]
[WhiteElo "2013"]
[BlackElo "1869"]
[Annotator "NA RC"]
[PlyCount "71"]
[EventDate "2024.12.23"]
[EventType "swiss"]
[EventCountry "ENG"]
[SourceTitle "playchess.com"]
[Source "ChessBase"]
[SourceQuality "1"]
[TimeControl "5400+30"]

1. Nf3 {[%emt 0:00:05]} Nc6 {[%emt 0:00:34]} 2. d4 {[%emt 0:00:41]} d6 {[%emt 0:01:06]} 3. d5 {[%emt 0:01:21]} Ne5 {[%emt 0:00:18]} 4. Nxe5 {[%emt 0:00:15]} dxe5 {[%emt 0:00:07]} 5. e4 {[%emt 0:00:35]} Nf6 {[%emt 0:00:18]} 6. Nc3 {[%emt 0:00:42]} e6 {[%emt 0:00:44]} 7. Bb5+ {[%emt 0:01:51]} Bd7 {[%emt 0:00:10]} 8. dxe6 {[%emt 0:01:00]} fxe6 {[%emt 0:00:08]} 9. Bc4 {[%emt 0:01:34]} Bc5 {[%emt 0:02:26]} 10. O-O {[%emt 0:04:08]} O-O {[%emt 0:01:52]} 11. Qe2 {[%emt 0:01:48]} Qe8 {[%emt 0:07:02]} 12. Be3 {[%emt 0:01:26]} Bd4 {[%emt 0:09:25]} 13. Bxd4 {[%emt 0:02:07]} exd4 {[%emt 0:00:06]} 14. Nb5 {[%emt 0:00:13]} Bxb5 {[%emt 0:00:30]} 15. Bxb5 {[%emt 0:00:02]} Qg6 {[%emt 0:05:56]} 16. Bc4 {[%emt 0:10:37]} Kh8 {[%emt 0:04:25]} 17. e5 {[%emt 0:09:34]} Nh5 {[%emt 0:01:39]} 18. Bd3 {[%emt 0:05:04]} Nf4 {[%emt 0:00:23]} 19. Qf3 {[%emt 0:00:26]} Nxd3 {[%emt 0:12:09]} 20. Qxd3 {[%emt 0:00:08]} Qxd3 {[%emt 0:00:40]} 21. cxd3 {[%emt 0:00:02]} Rf5 {[%emt 0:00:45]} 22. Rac1 {[%emt 0:03:28]} c6 {[%emt 0:00:22]} 23. Rfe1 {[%emt 0:00:51]} Raf8 {[%emt 0:05:07]} 24. f3 {[%emt 0:00:21]} g5 {[%emt 0:00:43]} 25. Re4 {[%emt 0:03:03]} Rf4 {[%emt 0:03:12]} 26. Rc4 {[%emt 0:05:55]} Rd8 {[%emt 0:00:28]} 27. Kf2 {[%emt 0:02:44]} Rd5 {[%emt 0:02:58]} 28. b4 {[%emt 0:03:37]} a5 {[%emt 0:17:29]} 29. a3 {[%emt 0:02:00]} axb4 {[%emt 0:00:12]} 30. axb4 {[%emt 0:00:05]} Rxe4 {[%emt 0:02:43]} 31. fxe4 {[%emt 0:00:17]} Rxe5 {[%emt 0:00:07]} 32. Rxd4 {[%emt 0:00:37]} Rb5 {[%emt 0:00:14]} 33. Rc4 {[%emt 0:01:34]} Kg7 {[%emt 0:02:22]} 34. Ke3 {[%emt 0:00:21]} Kf6 {[%emt 0:01:56]} 35. g4 {[%emt 0:03:52]} e5 {[%emt 0:02:20]} 36. h3 {[%emt 0:01:21]} 1/2-1/2

[Event "98th Caplin Hastings Masters 2024-25"]
[Site "Hastings"]
[Date "2024.12.28"]
[Round "1.32"]
[White "Stokes, Stephen"]
[Black "Malinovskii, Ilia"]
[Result "0-1"]
[ECO "D05"]
[WhiteElo "1866"]
[BlackElo "2003"]
[Annotator "NA RC"]
[PlyCount "70"]
[EventDate "2024.12.23"]
[EventType "swiss"]
[EventCountry "ENG"]
[SourceTitle "playchess.com"]
[Source "ChessBase"]
[SourceQuality "1"]
[TimeControl "5400+30"]

1. d4 {[%emt 0:00:05]} d5 {[%emt 0:00:08]} 2. Nf3 {[%emt 0:00:14]} Nf6 {[%emt 0:00:07]} 3. e3 {[%emt 0:00:18]} e6 {[%emt 0:01:58]} 4. Bd3 {[%emt 0:00:54]} b6 {[%emt 0:00:11]} 5. Ne5 {[%emt 0:02:28]} Bb7 {[%emt 0:01:29]} 6. Nd2 {[%emt 0:01:27]} Bd6 {[%emt 0:01:55]} 7. f4 {[%emt 0:00:49]} Nbd7 {[%emt 0:16:50]} 8. Qf3 {[%emt 0:02:12]} c5 {[%emt 0:02:09]} 9. c3 {[%emt 0:00:38]} Qc7 {[%emt 0:04:59]} 10. O-O {[%emt 0:01:49]} c4 {[%emt 0:02:33]} 11. Bc2 {[%emt 0:01:16]} b5 {[%emt 0:00:11]} 12. a3 {[%emt 0:02:00]} Nb6 {[%emt 0:05:19]} 13. g4 {[%emt 0:06:59]} O-O-O {[%emt 0:01:36]} 14. a4 {[%emt 0:04:00]} bxa4 {[%emt 0:03:03]} 15. Bxa4 {[%emt 0:00:18]} Ng8 {[%emt 0:09:37]} 16. Qh3 {[%emt 0:07:16]} Nh6 {[%emt 0:05:34]} 17. Bc2 {[%emt 0:02:08]} f6 {[%emt 0:05:08]} 18. g5 {[%emt 0:12:34]} fxe5 {[%emt 0:01:13]} 19. Qxe6+ {[%emt 0:03:28]} Kb8 {[%emt 0:00:07]} 20. fxe5 {[%emt 0:00:43]} Be7 {[%emt 0:00:41]} 21. gxh6 {[%emt 0:02:46]} Bc8 {[%emt 0:00:24]} 22. Qf7 {[%emt 0:01:50]} Rhf8 {[%emt 0:04:27]} 23. Qh5 {[%emt 0:02:15]} gxh6 {[%emt 0:01:30]} 24. Rxf8 {[%emt 0:07:57]} Rxf8 {[%emt 0:00:17]} 25. Qxh6 {[%emt 0:00:59]} Rg8+ {[%emt 0:08:43]} 26. Kh1 {[%emt 0:04:56]} Bg5 {[%emt 0:00:53]} 27. Qxh7 {[%emt 0:02:03]} Rg7 {[%emt 0:01:54]} 28. Qh8 {[%emt 0:01:33]} Qf7 {[%emt 0:05:02]} 29. e6 {[%emt 0:04:37]} Bxe3 {[%emt 0:00:24]} 30. Qxg7 {[%emt 0:02:03]} Qxg7 {[%emt 0:00:09]} 31. Nf3 {[%emt 0:00:31]} Qf6 {[%emt 0:01:11]} 32. Kg2 {[%emt 0:01:01]} Bxc1 {[%emt 0:00:22]} 33. Rxc1 {[%emt 0:00:07]} Bxe6 {[%emt 0:00:09]} 34. Rf1 {[%emt 0:00:49]} Qf4 {[%emt 0:00:59]} 35. Ne5 {[%emt 0:00:50]} Bh3+ {[%emt 0:00:11]} 0-1